bitfinex/quotes_SOLUSD_20220207
["timestamp","ask_amount","ask_price","bid_price","bid_amount"]
[1644251979816,9.85,120.43,120.27,43.3159078]
[1644251980016,456.43776933,120.44,120.27,43.3399078]
[1644251980217,456.43776933,120.44,120.28,0.024]
[1644251981014,12.4684,120.41,120.28,0.024]
[1644251981414,498.00026933,120.44,120.28,0.024]
[1644251981617,456.43776933,120.44,120.28,0.024]
[1644251982018,456.68776933,120.44,120.28,0.024]
[1644251982216,456.43776933,120.44,120.28,0.024]
[1644251982617,6.0,120.44,120.28,0.024]
[1644251982817,6.0,120.44,120.3,42.50272938]
[1644251983018,9.85,120.49,120.31,0.024]
[1644251983517,15.85,120.49,120.31,0.024]
[1644251983820,12.4621,120.47,120.31,0.024]
[1644251984017,12.815,120.46,120.31,0.024]
[1644251984617,18.815,120.46,120.31,0.024]
[1644251985216,15.85,120.46,120.31,0.024]
[1644251985616,12.4709,120.42,120.31,0.024]
[1644251985817,12.4709,120.42,120.3,42.52672938]
[1644251986020,9.85,120.41,120.3,42.52672938]
[1644251986216,9.85,120.41,120.3,42.50272938]
[1644251986817,12.4698,120.4,120.3,42.50272938]
[1644251987016,22.3198,120.4,120.3,42.50272938]
[1644251988317,22.3198,120.4,120.27,0.024]
[1644251988621,22.3198,120.4,120.28,0.024]
[1644251988816,19.63993646,120.39,120.28,0.024]
[1644251989018,12.4797,120.36,120.19,0.024]
[1644251989219,9.85,120.35,120.19,0.024]
[1644251989418,9.85,120.35,120.19,38.00279581]
[1644251989619,9.85,120.35,120.2,0.024]
[1644251991919,16.1,120.35,120.2,0.024]
[1644251992320,12.4764,120.33,120.2,0.024]
[1644251992519,9.85,120.32,120.2,0.024]
[1644251993020,10.1,120.32,120.2,0.024]
[1644251993219,9.85,120.32,120.2,0.024]
[1644251993822,12.4817,120.29,120.2,0.024]
[1644251994020,12.4817,120.29,120.19,37.97879581]
[1644251994920,12.4764,120.33,120.19,50.45599581]
[1644251995119,528.9933057,120.37,120.2,0.024]
[1644251995321,528.9933057,120.37,120.2,9.874]
[1644251995520,528.9933057,120.37,120.21,46.50700602]
[1644251995720,528.9933057,120.37,120.22,0.024]
[1644251996119,535.2433057,120.37,120.22,0.024]
[1644251996719,529.2433057,120.37,120.22,0.024]
[1644251996920,12.4743,120.35,120.23,12.4737]
[1644251997121,12.4743,120.35,120.24,45.54098732]
[1644251997524,528.9933057,120.37,120.24,45.51698732]
[1644251997723,528.9933057,120.37,120.25,0.024]
[1644251998121,528.9933057,120.37,120.23,41.74580966]
[1644251998122,24.36330326,120.36,120.23,41.74580966]
[1644251998323,24.36330326,120.36,120.25,0.024]
[1644251998623,9.85,120.35,120.25,0.024]
[1644251998925,9.85,120.35,120.23,41.76980966]
[1644251999323,12.4804,120.33,120.23,41.76980966]
[1644251999530,12.4804,120.33,120.23,41.74580966]
[1644252000129,12.7304,120.33,120.23,41.74580966]
[1644252000327,12.4741,120.35,120.23,41.74580966]
[1644252000531,12.4741,120.35,120.24,0.024]
[1644252000730,528.9933057,120.37,120.24,0.024]
[1644252000931,528.4933057,120.37,120.24,0.024]
[1644252001433,528.4933057,120.37,120.26,35.84310005]
[1644252001629,528.4933057,120.37,120.26,35.86710005]
[1644252002530,528.4933057,120.37,120.26,48.33860005]
[1644252003732,6.0,120.37,120.26,48.33860005]
[1644252004133,12.4704,120.39,120.26,58.18860005]
[1644252004334,6.0,120.39,120.26,58.18860005]
[1644252004933,12.4678,120.41,120.26,64.18860005]
[1644252005137,18.4678,120.41,120.26,64.18860005]
[1644252005334,18.4678,120.41,120.26,64.43860005]
[1644252005934,18.4678,120.41,120.26,65.62008517]
[1644252006336,6.0,120.41,120.26,65.62008517]
[1644252006639,53.51863949,120.43,120.26,65.62008517]
[1644252006936,57.85320602,120.43,120.26,65.62008517]
[1644252007135,1.44003036,120.42,120.26,65.37008517]
[1644252007335,12.4677,120.41,120.26,65.37008517]
[1644252007538,29.11066087,120.4,120.26,65.37008517]
[1644252007735,35.11066087,120.4,120.26,59.37008517]
[1644252007935,6.0,120.4,120.26,59.37008517]
[1644252008136,42.72813347,120.43,120.26,65.62008517]
[1644252008335,6.0,120.4,120.26,65.62008517]
[1644252008536,1.16543347,120.43,120.26,65.62008517]
[1644252008736,12.467,120.42,120.31,12.4662]
[1644252008937,29.44747853,120.41,120.32,41.31521388]
[1644252009136,12.467,120.42,120.32,41.31521388]
[1644252009939,18.467,120.42,120.32,41.31521388]
[1644252010344,1.11870378,120.41,120.31,0.024]
[1644252010543,1.11870378,120.41,120.27,1.18148512]
[1644252010544,0.31148125,120.35,120.2,12.2695]
[1644252010741,0.31148125,120.35,120.13,0.44422836]
[1644252010742,0.30821927,120.31,120.13,0.44422836]
[1644252010942,12.802,120.3,120.14,2.36320104]
[1644252011141,5.0,120.28,120.14,0.36320104]
[1644252011442,5.0,120.28,120.14,36.06723823]
[1644252011443,41.86333254,120.27,120.14,36.06723823]
[1644252011640,41.86333254,120.27,120.14,35.70403719]
[1644252012140,51.4674,120.27,120.14,35.70403719]
[1644252012344,508.66794618,120.28,120.14,35.70403719]
[1644252012542,508.66794618,120.28,120.15,9.85]
[1644252012743,508.66794618,120.28,120.15,10.1]
[1644252012943,508.66794618,120.28,120.16,43.15765183]
[1644252013143,508.66794618,120.28,120.18,50.87450398]
[1644252013443,508.66794618,120.28,120.19,9.85]
[1644252014446,508.66794618,120.28,120.2,39.09885754]
[1644252014643,41.595,120.33,120.2,39.09885754]
[1644252015244,41.595,120.33,120.14,41.5992]
[1644252015447,0.3193303,120.31,120.13,0.44422836]
[1644252015645,22.3289,120.3,120.13,12.92772836]
[1644252016046,28.3289,120.3,120.13,12.92772836]
[1644252016267,28.37763185,120.29,120.14,47.78871536]
[1644252016666,28.62763185,120.29,120.14,47.78871536]
[1644252017267,6.0,120.3,120.14,60.27141536]
[1644252017470,6.0,120.3,120.15,9.85]
[1644252017870,6.0,120.3,120.14,47.78871536]
[1644252017871,556.40067496,120.28,120.14,47.78871536]
[1644252018072,566.25067496,120.28,120.14,47.78871536]
[1644252018271,28.99189865,120.27,120.14,47.78871536]
[1644252018471,2.727,120.27,120.14,47.78871536]
[1644252018671,2.977,120.27,120.14,47.78871536]
[1644252019071,2.977,120.27,120.23,0.15]
[1644252019272,10.1,120.27,120.23,0.15]
[1644252019673,12.4828,120.26,120.23,0.15]
[1644252022077,12.4809,120.28,120.23,0.15]
[1644252023275,18.4809,120.28,120.23,0.15]
[1644252024380,2.30564072,120.27,120.13,0.44422836]
[1644252024578,12.4869,120.23,120.13,0.44422836]
[1644252025380,9.85,120.28,120.13,0.44422836]
[1644252025781,394.23862859,120.26,120.14,0.024]
[1644252025980,423.50509264,120.26,120.13,0.46822836]
[1644252026385,12.4837,120.25,120.13,0.46822836]
[1644252026582,3.86557227,120.24,120.13,0.46822836]
[1644252026788,16.1,120.25,120.13,0.46822836]
[1644252027686,12.4869,120.22,120.13,0.46822836]
[1644252027885,9.48908282,120.21,120.13,0.46822836]
[1644252028084,9.48908282,120.21,120.13,0.44422836]
[1644252028486,9.85,120.2,120.13,2.836e-05]
[1644252028690,9.85,120.19,120.13,2.836e-05]
[1644252029085,105.0,120.18,120.06,0.80590606]
[1644252029284,105.0,120.18,120.02,0.6983339]
[1644252029285,114.85,120.18,120.02,0.6983339]
[1644252029485,155.0,120.11,119.9,116.82296677]
[1644252029685,9.85,120.1,119.94,0.024]
[1644252029887,9.85,120.1,119.91,0.024]
[1644252029888,5.0,120.03,119.91,0.024]
[1644252030087,12.5127,120.0,119.88,0.46140552]
[1644252030285,9.85,119.99,119.88,0.46140552]
[1644252030487,12.5127,120.0,119.88,0.46140552]
[1644252030885,9.85,120.03,119.88,0.46140552]
[1644252031286,6.18045,120.02,119.88,0.46140552]
[1644252031487,28.53805,120.02,119.89,43.84582858]
[1644252032090,34.78805,120.02,119.89,43.84582858]
[1644252033690,34.78805,120.02,119.89,49.84582858]
[1644252034388,27.90430671,120.01,119.89,43.84582858]
[1644252034589,12.5126,119.98,119.89,43.84582858]
[1644252034788,6.18045,119.97,119.89,43.84582858]
[1644252037792,6.18045,119.97,119.89,56.35542858]
[1644252039292,6.43045,119.97,119.89,56.35542858]
[1644252040594,6.18045,119.96,119.9,112.0]
[1644252040798,5e-05,119.96,119.9,112.0]
[1644252040998,370.57762576,120.07,119.91,177.3561]
[1644252040999,6.18045,120.06,119.91,177.3561]
[1644252041397,6.18045,120.06,119.91,22.3561]
[1644252041593,18.68405,120.06,119.91,28.3561]
[1644252041794,18.68405,120.06,119.92,42.65960272]
[1644252041995,18.68405,120.06,119.92,52.50960272]
[1644252042195,24.68405,120.06,119.96,12.5034]
[1644252042595,24.68405,120.06,119.94,0.024]
[1644252042995,18.68405,120.06,119.94,0.024]
[1644252043195,19.44264955,120.06,119.94,0.024]
[1644252043395,25.44264955,120.06,119.94,12.529]
[1644252043595,35.29264955,120.06,119.94,0.024]
[1644252043995,34.53405,120.06,119.94,0.024]
[1644252044195,34.78405,120.06,119.94,0.024]
[1644252044394,34.53405,120.06,119.94,0.024]
[1644252045197,18.68405,120.06,119.94,0.024]
[1644252045499,24.68405,120.06,119.94,0.024]
[1644252045694,18.68405,120.06,119.94,0.024]
[1644252046496,18.93405,120.06,119.94,0.024]
[1644252047098,18.93405,120.06,119.95,48.27568362]
[1644252048102,27.64377909,120.05,119.95,48.27568362]
[1644252048304,18.68545,120.04,119.95,60.78028362]
[1644252049599,6.18045,120.04,119.95,60.78028362]
[1644252050901,15.67372452,120.04,119.95,60.78028362]
[1644252051101,15.67372452,120.04,119.95,48.27568362]
[1644252051905,28.42872452,120.04,119.95,48.27568362]
[1644252052404,18.68545,120.04,119.95,47.11969702]
[1644252053207,6.18045,120.04,119.95,47.11969702]
[1644252053907,6.18045,120.04,119.95,59.62389702]
[1644252055207,12.18045,120.04,119.95,59.62389702]
[1644252055708,6.18045,120.04,119.95,59.62389702]
[1644252058623,6.43045,120.04,119.95,59.62389702]
[1644252059026,12.43045,120.04,119.95,59.62389702]
[1644252059225,6.43045,120.04,119.95,59.62389702]
[1644252059828,18.93495,120.04,119.95,59.62389702]
[1644252060224,6.18045,120.04,119.95,59.62389702]
[1644252060829,370.57762576,120.07,119.99,12.4996]
[1644252061030,269.02797685,120.07,119.99,22.3496]
[1644252061226,261.6112063,120.07,120.0,37.8254106]
[1644252062125,261.6112063,120.07,120.03,38.84769377]
[1644252063328,261.6112063,120.07,120.0,12.4995]
[1644252063732,0.25,120.07,120.0,12.4995]
[1644252064128,18.5003,120.08,120.0,12.4995]
[1644252064329,18.5003,120.08,120.01,48.30327041]
[1644252065329,6.0,120.08,120.01,60.80217041]
[1644252065730,12.4989,120.1,120.01,60.80217041]
[1644252065930,18.4989,120.1,120.01,60.80217041]
[1644252066330,37.33866362,120.09,120.01,60.62670265]
[1644252066531,49.83796362,120.09,120.01,60.62670265]
[1644252066733,12.4993,120.09,120.01,60.62670265]
[1644252067131,6.0,120.1,120.01,60.62670265]
[1644252067736,18.4982,120.1,120.01,60.62670265]
[1644252067935,45.6771723,120.09,120.01,60.62670265]
[1644252068335,41.6609,120.13,120.01,60.62670265]
[1644252068536,504.49541171,120.15,120.01,60.62670265]
[1644252068740,475.33591171,120.15,120.01,60.87670265]
[1644252068935,475.33591171,120.15,120.01,60.90070265]
[1644252069335,48.78053893,120.14,120.01,60.65070265]
[1644252069535,48.78053893,120.14,120.01,70.50070265]
[1644252069735,48.78053893,120.14,120.01,60.65070265]
[1644252070537,48.78053893,120.14,120.01,60.90070265]
[1644252070738,48.78053893,120.14,120.02,9.85]
[1644252070938,462.84201171,120.15,120.05,12.492]
[1644252071540,468.84201171,120.15,120.05,12.492]
[1644252071738,468.84201171,120.15,120.06,9.85]
[1644252071739,462.84201171,120.15,120.06,9.85]
[1644252071938,462.84201171,120.15,120.07,36.64183721]
[1644252072342,462.84201171,120.15,120.08,12.4884]
[1644252073037,45.98952609,120.19,120.09,39.42991177]
[1644252073239,40.56834261,120.15,120.09,39.42991177]
[1644252073438,34.56834261,120.15,120.06,12.4934]
[1644252073637,34.56834261,120.15,120.01,12.3731]
[1644252073638,40.56834261,120.15,120.01,12.3731]
[1644252074041,40.06834261,120.15,120.01,12.3731]
[1644252074337,52.56204261,120.15,120.02,42.86963028]
[1644252074540,18.4937,120.15,120.04,12.4958]
[1644252074838,9.85,120.21,120.04,12.4958]
[1644252075538,12.4921,120.17,120.07,12.4927]
[1644252075740,35.31295575,120.16,120.08,41.98215915]
[1644252075938,12.4921,120.17,120.08,41.98215915]
[1644252076743,12.4921,120.17,120.05,41.6407]
[1644252076939,12.4921,120.17,120.06,12.4937]
[1644252077139,9.85,120.16,120.01,12.3731]
[1644252077340,12.4966,120.12,120.01,12.3731]
[1644252077742,0.25,120.12,120.02,38.84073215]
[1644252077941,9.85,120.16,120.02,38.84073215]
[1644252078143,41.6477,120.18,120.03,12.4964]
[1644252078742,46.64470176,120.17,120.04,44.89705128]
[1644252078943,12.4933,120.16,120.04,44.89705128]
[1644252079245,41.97596984,120.15,120.04,44.89705128]
[1644252080047,41.97596984,120.15,120.07,12.4924]
[1644252080244,48.22596984,120.15,120.08,40.37258858]
[1644252080444,6.25,120.15,120.08,40.37258858]
[1644252080845,0.25,120.15,120.08,40.37258858]
[1644252081145,12.4933,120.16,120.08,40.37258858]
[1644252081345,62.58897869,120.16,120.08,40.37258858]
[1644252081945,62.58897869,120.16,120.02,41.6507]
[1644252082347,62.58897869,120.16,120.01,122.1572]
[1644252082546,72.43897869,120.16,120.01,122.1572]
[1644252082747,72.68897869,120.16,120.01,122.1572]
[1644252082946,72.68897869,120.16,120.02,45.7407183]
[1644252083947,72.68897869,120.16,120.02,58.2383183]
[1644252084148,72.68897869,120.16,120.02,58.4883183]
[1644252084549,62.83897869,120.16,120.02,58.2383183]
[1644252086351,72.68897869,120.16,120.02,58.2383183]
[1644252087157,74.83580726,120.16,120.02,45.7407183]
[1644252087360,8.68206778,120.15,119.97,49.0423]
[1644252087555,9.85,120.14,119.97,24.9767]
[1644252087757,12.5031,120.1,119.97,24.9527]
[1644252087961,9.85,120.09,119.95,0.024]
[1644252088157,9.85,120.09,119.96,12.5039]
[1644252088365,41.01266358,120.08,119.97,44.59597048]
[1644252088857,43.15949215,120.08,119.97,44.59597048]
[1644252089062,39.7432795,120.04,119.97,44.59597048]
[1644252089258,39.7432795,120.04,119.95,0.024]
[1644252089459,39.7432795,120.04,119.94,6.13072]
[1644252090260,39.7432795,120.04,119.95,34.7970883]
[1644252090457,39.7432795,120.04,119.95,40.9272983]
[1644252091059,48.6058746,120.01,119.95,40.9272983]
[1644252091258,48.6058746,120.01,119.95,6.13021]
[1644252091858,51.5491,120.03,119.95,6.13021]
[1644252092561,12.5106,120.0,119.95,6.13021]
[1644252092760,59.51980281,120.0,119.95,6.13021]
[1644252093059,12.5106,120.0,119.96,37.65292274]
[1644252093261,15.73343727,120.07,119.97,6.12919]
[1644252093460,9.85,120.05,119.97,6.12919]
[1644252093661,12.5066,120.04,119.97,6.12919]
[1644252094059,37.0951399,120.03,119.97,6.12919]
[1644252094663,46.9451399,120.03,119.97,6.12919]
[1644252094969,137.0,120.01,119.9,0.024]
[1644252095161,137.0,120.01,119.81,124.01004322]
[1644252095162,41.7128,119.99,119.89,0.024]
[1644252095362,54.49229625,119.98,119.88,46.45474277]
[1644252095563,54.49229625,119.98,119.88,40.32095277]
[1644252095762,54.74229625,119.98,119.88,40.32095277]
[1644252095963,67.25619625,119.98,119.88,40.32095277]
[1644252096163,80.03363352,119.98,119.88,40.32095277]
[1644252096767,80.03363352,119.98,119.88,45.95474277]
[1644252098364,80.03363352,119.98,119.88,6.13379]
[1644252098785,88.18046209,119.98,119.88,6.13379]
[1644252099385,2.961,119.97,119.88,6.13379]
[1644252099689,44.58163077,119.94,119.88,6.13379]
[1644252099885,9.85,119.93,119.88,43.12906442]
[1644252100287,9.85,119.96,119.88,36.99527442]
[1644252101088,47.8221838,119.95,119.88,36.99527442]
[1644252101287,60.3399838,119.95,119.82,12.5619]
[1644252101488,70.1899838,119.95,119.82,12.5619]
[1644252102090,57.6721838,119.95,119.82,12.5619]
[1644252102290,57.6721838,119.95,119.83,35.99481832]
[1644252102488,57.6721838,119.95,119.84,12.5156]
[1644252102688,57.6721838,119.95,119.85,47.83348681]
[1644252104090,63.6721838,119.95,119.85,47.83348681]
[1644252104689,16.1,119.95,119.85,47.83348681]
[1644252104891,6.25,119.95,119.85,60.34858681]
[1644252105090,6.0,119.95,119.85,60.34858681]
[1644252105289,116.0897,120.02,119.87,116.0]
[1644252105489,74.381,120.02,119.85,54.08348681]
[1644252105689,45.13510123,120.01,119.86,0.024]
[1644252106591,9.85,120.03,119.86,0.024]
[1644252106791,412.4738155,120.04,119.88,12.5111]
[1644252106991,412.4738155,120.04,119.89,0.024]
[1644252107191,414.62064407,120.04,119.88,0.024]
[1644252107394,414.62064407,120.04,119.87,9.85]
[1644252107591,414.62064407,120.04,119.88,0.024]
[1644252107592,34.7246065,120.03,119.88,0.024]
[1644252107792,34.7246065,120.03,119.88,37.08934305]
[1644252108291,34.9746065,120.03,119.88,37.33934305]
[1644252108493,34.7246065,120.03,119.88,37.33934305]
[1644252108691,412.4738155,120.04,119.91,12.5086]
[1644252108890,412.4738155,120.04,119.92,9.85]
[1644252109592,45.46212326,120.03,119.93,38.04503285]
[1644252109798,45.46212326,120.03,119.93,50.55173285]
[1644252110004,45.71212326,120.03,119.93,50.55173285]
[1644252110392,0.25,120.03,119.93,50.55173285]
[1644252110592,51.5375,120.08,119.93,50.55173285]
[1644252110891,12.5046,120.07,119.93,60.40173285]
[1644252111392,46.2322797,120.06,119.93,60.40173285]
[1644252112294,46.4822797,120.06,119.93,60.40173285]
[1644252113096,12.5023,120.09,119.93,60.40173285]
[1644252113296,12.5023,120.09,119.93,60.65173285]
[1644252113898,12.792,120.13,119.93,60.65173285]
[1644252114097,43.71283061,120.09,119.93,116.29173285]
[1644252114297,43.71283061,120.09,119.93,66.65173285]
[1644252114698,2.942,120.13,119.93,66.65173285]
[1644252115598,42.47561113,120.12,119.93,66.65173285]
[1644252116001,42.47561113,120.12,119.93,115.79173285]
[1644252116199,42.47561113,120.12,119.93,129.9824044]
[1644252116499,400.26866452,120.14,120.0,12.4922]
[1644252116703,400.26866452,120.14,120.01,9.85]
[1644252117100,400.26866452,120.14,120.01,10.1]
[1644252117302,39.40736533,120.13,120.02,44.52760078]
[1644252117703,9.85,120.18,120.02,44.52760078]
[1644252117901,9.85,120.18,120.04,12.493]
[1644252118701,41.74290556,120.17,120.05,39.61923916]
[1644252119101,66.23403413,120.17,120.01,9.85]
[1644252119300,66.23403413,120.17,120.03,6.0]
[1644252119700,66.23403413,120.17,120.03,6.25]
[1644252119901,66.23403413,120.17,120.0,57.5036]
[1644252120103,66.23403413,120.17,120.01,46.71200535]
[1644252120308,78.80176233,120.17,120.01,12.4985]
[1644252120504,86.86614991,120.17,119.99,22.9906]
[1644252120704,2.876,120.16,119.99,22.9906]
[1644252120904,12.5006,120.11,119.99,22.9906]
[1644252121305,48.30663127,120.1,120.02,12.4972]
[1644252121504,48.30663127,120.1,120.03,34.85295146]
[1644252122004,12.4978,120.13,120.03,34.85295146]
[1644252122205,9.85,120.15,120.03,34.85295146]
[1644252123005,46.31272264,120.14,120.03,44.85295146]
[1644252124005,46.31272264,120.14,120.03,57.34975146]
[1644252124206,467.44369269,120.17,120.03,57.59975146]
[1644252124607,467.44369269,120.17,120.03,67.44975146]
[1644252125207,44.99546427,120.16,120.03,67.44975146]
[1644252126106,44.99546427,120.16,120.03,73.44975146]
[1644252126307,44.99546427,120.16,120.03,67.44975146]
[1644252126507,44.99546427,120.16,120.03,67.19975146]
[1644252126707,54.84546427,120.16,120.03,57.34975146]
[1644252127107,55.09546427,120.16,120.03,57.34975146]
[1644252127307,14.74359962,120.15,119.97,23.5473]
[1644252127507,14.74359962,120.15,119.96,196.1078]
[1644252127508,9.85,120.14,119.96,196.1078]
[1644252127709,21.4947282,120.14,119.94,24.2939]
[1644252127910,32.05532782,120.13,119.94,23.7939]
[1644252128108,9.85,120.12,119.94,23.7939]
[1644252128308,85.71217724,120.12,119.95,42.252117]
[1644252128509,85.71217724,120.12,119.95,54.756717]
[1644252128510,46.14761355,120.09,119.95,54.756717]
[1644252129109,404.44002706,120.13,119.96,9.85]
[1644252129509,394.44002706,120.13,119.96,59.49]
[1644252129710,394.44002706,120.13,120.0,12.4978]
[1644252129910,394.44002706,120.13,120.01,9.85]
[1644252130110,441.8064433,120.13,120.02,17.1437614]
[1644252130515,394.44002706,120.13,120.02,17.1437614]
[1644252130713,394.44002706,120.13,120.03,0.31327474]
[1644252131013,9.85,120.2,120.04,9.85]
[1644252131511,45.54562245,120.19,120.05,34.45800983]
[1644252131715,12.4926,120.17,120.08,12.4919]
[1644252131912,36.59389158,120.16,120.08,27.57976857]
[1644252132714,36.84389158,120.16,120.08,27.57976857]
[1644252134117,12.4926,120.17,120.08,27.57976857]
[1644252134718,12.4926,120.17,120.06,12.4933]
[1644252135417,12.7426,120.17,120.06,12.4933]
[1644252135621,43.83329977,120.16,120.07,39.33649885]
[1644252135819,56.32659977,120.16,120.07,51.82949885]
[1644252136119,12.4933,120.16,120.07,51.82949885]
[1644252136619,12.7433,120.16,120.07,51.82949885]
[1644252136818,12.4933,120.16,120.07,51.82949885]
[1644252137118,45.01379646,120.17,120.07,51.82949885]
[1644252138822,12.493,120.16,120.02,12.4168]
[1644252139020,22.343,120.16,120.02,12.4168]
[1644252139319,37.73090056,120.16,120.01,23.4685]
[1644252139519,22.23424948,120.15,120.01,23.4685]
[1644252139726,11.00191125,120.14,120.01,23.4685]
[1644252139941,12.503,120.11,120.01,23.4685]
[1644252140120,12.81,120.1,120.01,23.4685]
[1644252140520,9.85,120.1,120.01,23.4685]
[1644252141021,12.5032,120.08,120.01,60.28852655]
[1644252141621,11.00191125,120.1,120.01,60.28852655]
[1644252141823,9.85,120.1,120.01,60.28852655]
[1644252142023,11.00191125,120.1,120.01,23.4685]
[1644252142222,12.5,120.09,120.01,23.4685]
[1644252143120,60.03016814,120.09,120.01,62.77196503]
[1644252143323,60.03016814,120.09,120.01,39.30346503]
[1644252143522,60.03016814,120.09,119.99,12.5008]
[1644252143720,60.28016814,120.09,119.99,12.5008]
[1644252144522,60.28016814,120.09,120.0,47.39310654]
[1644252144921,12.5,120.09,120.0,59.89360654]
[1644252145522,12.5,120.09,119.97,41.6655]
[1644252145723,12.5,120.09,119.95,89.4753]
[1644252145925,24.49682857,120.09,119.95,101.9831]
[1644252146122,24.49682857,120.09,119.95,101.9591]
[1644252146426,36.04267908,120.08,119.96,36.50356262]
[1644252146821,38.67802444,120.05,119.98,25.54411578]
[1644252147222,38.92802444,120.05,119.98,25.54411578]
[1644252147621,38.92802444,120.05,119.98,12.5018]
[1644252148021,51.43202444,120.05,119.96,12.504]
[1644252148222,51.43202444,120.05,119.94,0.024]
[1644252148422,53.57885301,120.05,119.94,0.024]
[1644252148624,53.57885301,120.05,119.92,37.388129]
[1644252149022,54.73076426,120.05,119.93,0.024]
[1644252149223,9.85,120.04,119.92,0.024]
[1644252149423,12.5113,120.01,119.91,0.024]
[1644252149624,12.5113,120.01,119.9,12.5098]
[1644252150026,46.91444765,120.0,119.91,38.79506736]
[1644252151428,12.5116,119.98,119.89,0.024]
[1644252151626,12.5116,119.98,119.88,0.024]
[1644252151826,12.5116,119.98,119.86,6.13481]
[1644252152027,12.5116,119.98,119.86,6.15881]
[1644252152227,12.7616,119.98,119.86,6.15881]
[1644252152428,37.2485678,119.97,119.87,46.02990615]
[1644252152628,12.5141,119.96,119.89,3.51597225]
[1644252152829,12.5141,119.96,119.9,6.13277]
[1644252154029,34.94646566,119.95,119.9,6.13277]
[1644252154230,12.5172,119.94,119.9,6.13277]
[1644252154952,9.85,119.98,119.9,6.13277]
[1644252155154,41.7075,120.0,119.9,6.13277]
[1644252155353,12.5119,119.98,119.9,6.15677]
[1644252155553,12.5119,119.98,119.91,36.22977733]
[1644252156357,36.41330702,119.97,119.9,6.13277]
[1644252156556,12.5136,119.96,119.9,6.13277]
[1644252157355,12.5136,119.96,119.9,52.84950367]
[1644252157554,12.5136,119.96,119.9,46.71673367]
[1644252157754,12.5136,119.96,119.86,0.024]
[1644252157957,12.5136,119.96,119.84,22.7683]
[1644252158356,12.7636,119.96,119.84,22.7683]
[1644252158559,12.5136,119.96,119.84,28.90414]
[1644252158757,41.34323496,119.95,119.85,34.95456149]
[1644252158960,53.85753496,119.95,119.85,34.97856149]
[1644252160059,54.10753496,119.95,119.85,34.97856149]
[1644252160259,12.5143,119.95,119.85,34.97856149]
[1644252160458,12.513,119.97,119.85,35.22856149]
[1644252160860,41.7097,120.0,119.85,45.07856149]
[1644252161059,9.85,120.02,119.86,0.024]
[1644252161258,35.13385379,120.01,119.86,0.024]
[1644252161462,35.13385379,120.01,119.87,9.85]
[1644252161659,35.38385379,120.01,119.88,14.61531691]
[1644252162060,35.13385379,120.01,119.88,14.61531691]
[1644252162259,47.64235379,120.01,119.88,27.37381691]
[1644252162458,47.64235379,120.01,119.88,27.34981691]
[1644252162861,47.64235379,120.01,119.88,27.09981691]
[1644252163060,47.64235379,120.01,119.9,34.95456149]
[1644252163258,47.64235379,120.01,119.9,35.22856149]
[1644252163459,47.64235379,120.01,119.9,35.20456149]
[1644252163659,47.64235379,120.01,119.92,14.59131691]
[1644252165663,47.89235379,120.01,119.92,14.59131691]
[1644252165862,12.7585,120.01,119.92,14.59131691]
[1644252166463,12.7585,120.01,119.88,0.024]
[1644252166666,12.7585,120.01,119.88,9.874]
[1644252167463,46.74754205,120.0,119.89,47.82939829]
[1644252167665,12.5103,119.99,119.89,47.85339829]
[1644252167864,45.3768219,119.98,119.89,47.82939829]
[1644252168066,51.5521,120.02,119.89,47.82939829]
[1644252168266,51.5521,120.02,119.89,47.85339829]
[1644252168466,51.5521,120.02,119.9,0.024]
[1644252168668,12.5098,120.0,119.9,0.024]
[1644252168966,12.5098,120.0,119.89,47.82939829]
[1644252169366,12.7598,120.0,119.89,48.07939829]
[1644252169567,12.7598,120.0,119.89,47.82939829]
[1644252171069,40.74392508,119.99,119.89,47.82939829]
[1644252171271,53.25412508,119.99,119.89,47.82939829]
[1644252171469,12.5102,119.99,119.89,47.82939829]
[1644252172673,12.5102,119.99,119.89,60.33869829]
[1644252172870,12.5102,119.99,119.89,70.18869829]
[1644252173272,12.5102,119.99,119.89,47.82939829]